bitfinex-derivatives/quotes_BTCF0:USTF0_20250509
["timestamp","ask_amount","ask_price","bid_price","bid_amount"]
[1746774647737,0.37582685,103510.0,103500.0,0.78475857]
[1746774648841,0.37582685,103510.0,103500.0,0.67719476]
[1746774649031,0.37582685,103510.0,103500.0,0.78475857]
[1746774649336,0.37582685,103510.0,103500.0,0.67719476]
[1746774649638,0.48339066,103510.0,103500.0,0.67719476]
[1746774649826,0.43642685,103510.0,103500.0,0.67719476]
[1746774650232,0.18259915,103510.0,103500.0,0.78475857]
[1746774650535,0.37582685,103510.0,103500.0,0.67719476]
[1746774650731,0.37582685,103510.0,103500.0,0.77007099]
[1746774650926,0.18259915,103510.0,103500.0,0.77007099]
[1746774651240,0.37582685,103510.0,103500.0,0.76807099]
[1746774651633,0.37582685,103510.0,103500.0,0.78417217]
[1746774652140,0.37582685,103510.0,103500.0,0.78517217]
[1746774652343,0.37582685,103510.0,103500.0,0.67760836]
[1746774652840,0.43952685,103510.0,103500.0,0.67760836]
[1746774653538,0.43564009,103510.0,103500.0,0.67760836]
[1746774653740,0.43954771,103510.0,103500.0,0.67760836]
[1746774654151,0.43956857,103510.0,103500.0,0.78517217]
[1746774654441,0.37586857,103510.0,103500.0,0.78517217]
[1746774654742,0.37586857,103510.0,103500.0,0.67760922]
[1746774656140,0.43696857,103510.0,103500.0,0.78517303]
[1746774656346,0.43698943,103510.0,103500.0,0.78517303]
[1746774656537,0.43698943,103510.0,103500.0,0.67760922]
[1746774656845,0.43701029,103510.0,103500.0,0.67760922]
[1746774659444,0.43701029,103510.0,103500.0,0.62760922]
[1746774659841,0.43701029,103510.0,103500.0,0.62760934]
[1746774660445,0.18268259,103510.0,103500.0,0.73517315]
[1746774660646,0.17376702,103510.0,103500.0,0.73517315]
[1746774661349,0.14371493,103510.0,103500.0,0.73517315]
[1746774661641,0.13163076,103510.0,103500.0,0.73517315]
[1746774661847,0.12709933,103510.0,103500.0,0.76877836]
[1746774662046,0.12709933,103510.0,103500.0,0.6295417]
[1746774662254,0.00667602,103510.0,103500.0,0.77071072]
[1746774662749,0.225109,103520.0,103510.0,0.1932277]
[1746774662944,0.225109,103520.0,103510.0,0.73024171]
[1746774663259,0.385109,103520.0,103510.0,0.6596572]
[1746774663552,0.449809,103520.0,103510.0,0.67475838]
[1746774664951,0.449809,103520.0,103510.0,0.48153068]
[1746774665144,0.449809,103520.0,103510.0,0.45143068]
[1746774665951,0.449809,103520.0,103510.0,0.4514297]
[1746774666852,0.449809,103520.0,103510.0,0.6446574]
[1746774667052,0.449809,103520.0,103510.0,0.6752574]
[1746774668450,0.44074616,103520.0,103510.0,0.6752574]
[1746774668654,0.44074616,103520.0,103510.0,0.6897474]
[1746774669457,0.44074616,103520.0,103510.0,0.6577474]
[1746774670652,0.44074616,103520.0,103510.0,0.76532265]
[1746774672859,0.40934616,103520.0,103510.0,0.76532265]
[1746774673858,0.18283716,103520.0,103510.0,0.76532265]
[1746774674050,0.16,103520.0,103510.0,0.76532265]
[1746774674255,0.9230101,103530.0,103520.0,0.193209]
[1746774674450,0.91394832,103530.0,103520.0,0.62803752]
[1746774674657,0.94464832,103530.0,103520.0,0.62803752]
[1746774674957,0.94464832,103530.0,103520.0,0.6431387]
[1746774675263,1.10464832,103530.0,103520.0,0.6431387]
[1746774675446,0.16241,103530.0,103520.0,0.75071395]
[1746774675951,0.16241,103530.0,103520.0,0.76500851]
[1746774676860,0.15757756,103530.0,103520.0,0.76500851]
[1746774677552,0.18947756,103530.0,103520.0,0.76500851]
[1746774678153,0.18947756,103530.0,103520.0,2.26500851]
[1746774679355,0.18947756,103530.0,103520.0,2.15743326]
[1746774679550,0.18947756,103530.0,103520.0,2.29730851]
[1746774679846,0.18947756,103530.0,103520.0,0.79730604]
[1746774680051,0.22147756,103530.0,103520.0,0.79730604]
[1746774680246,0.44596786,103530.0,103520.0,0.68973079]
[1746774681053,0.55354311,103530.0,103520.0,0.68973079]
[1746774681251,0.44596786,103530.0,103520.0,0.68973079]
[1746774681458,0.44596786,103530.0,103520.0,0.83727849]
[1746774681658,0.44596786,103530.0,103520.0,0.94485374]
[1746774681858,0.44596786,103530.0,103520.0,0.83727849]
[1746774683759,0.44596786,103530.0,103520.0,0.94485374]
[1746774684447,0.44596786,103530.0,103520.0,0.79730604]
[1746774685153,0.25277756,103530.0,103520.0,0.68973079]
[1746774685346,0.18947756,103530.0,103520.0,0.68973079]
[1746774685552,0.18947756,103530.0,103520.0,0.79730604]
[1746774685759,0.18947756,103530.0,103520.0,0.68973079]
[1746774685959,0.41546786,103530.0,103520.0,0.68973079]
[1746774686459,0.40640703,103530.0,103520.0,0.79730604]
[1746774686662,0.21321673,103530.0,103520.0,0.79730604]
[1746774686854,0.17316807,103530.0,103520.0,0.68973079]
[1746774687048,0.17316807,103530.0,103520.0,0.79730604]
[1746774687566,0.17316807,103530.0,103520.0,0.68973079]
[1746774687759,0.17316807,103530.0,103520.0,0.79730604]
[1746774687956,0.1686377,103530.0,103520.0,0.68973079]
[1746774688158,0.1367377,103530.0,103520.0,0.68973079]
[1746774688453,0.1367377,103530.0,103520.0,0.79730604]
[1746774688659,0.1691377,103530.0,103520.0,0.68973079]
[1746774688859,0.1594729,103530.0,103520.0,0.94485374]
[1746774689062,0.1594729,103530.0,103520.0,2.33727849]
[1746774689263,0.1594729,103530.0,103520.0,2.44485374]
[1746774689460,0.1594729,103530.0,103520.0,2.33727849]
[1746774689669,0.1594729,103530.0,103520.0,0.94485374]
[1746774690158,0.1594729,103530.0,103520.0,2.33727849]
[1746774690358,0.1594729,103530.0,103520.0,2.44485374]
[1746774691264,0.1594729,103530.0,103520.0,2.33727849]
[1746774691455,0.1594729,103530.0,103520.0,2.44485374]
[1746774691857,0.1594729,103530.0,103520.0,0.94485374]
[1746774692056,0.1594729,103530.0,103520.0,0.97526374]
[1746774692358,0.15464057,103530.0,103520.0,2.36768849]
[1746774692666,0.17597992,103530.0,103520.0,2.47526374]
[1746774693164,0.14557992,103530.0,103520.0,0.97526374]
[1746774693661,0.14557992,103530.0,103520.0,2.47526374]
[1746774694166,0.14557992,103530.0,103520.0,0.97526374]
[1746774694356,0.14557992,103530.0,103520.0,0.98974374]
[1746774694762,0.14557992,103530.0,103520.0,0.88216849]
[1746774695268,0.14557992,103530.0,103520.0,0.98974374]
[1746774695457,0.14557992,103530.0,103520.0,0.98974347]
[1746774695766,0.14557992,103530.0,103520.0,1.0232976]
[1746774696863,0.1063845,103530.0,103520.0,1.0232976]
[1746774697259,0.7598819,103540.0,103530.0,0.1931903]
[1746774697459,0.75263351,103540.0,103530.0,0.74898195]
[1746774698064,0.74296899,103540.0,103530.0,0.74898195]
[1746774698261,0.90296899,103540.0,103530.0,0.74898195]
[1746774698462,0.8939085,103540.0,103530.0,0.74898195]
[1746774698864,0.8939085,103540.0,103530.0,0.67841709]
[1746774699064,0.8939085,103540.0,103530.0,0.74898178]
[1746774699261,0.7007366,103540.0,103530.0,0.67841709]
[1746774699569,0.8939083,103540.0,103530.0,0.74898178]
[1746774699770,0.8939083,103540.0,103530.0,0.67841709]
[1746774700069,0.7339083,103540.0,103530.0,0.67841709]
[1746774700559,0.7339083,103540.0,103530.0,0.7587806]
[1746774700868,0.5739366,103540.0,103530.0,0.7587806]
[1746774701267,0.9271083,103540.0,103530.0,0.7587806]
[1746774701767,0.9271083,103540.0,103530.0,0.68821591]
[1746774702066,0.9271083,103540.0,103530.0,0.7587806]
[1746774702472,0.9271083,103540.0,103530.0,0.68821591]
[1746774702771,0.9271083,103540.0,103530.0,0.7587806]
[1746774702972,0.9271083,103540.0,103530.0,0.68821591]
[1746774703470,0.9271083,103540.0,103530.0,0.9063283]
[1746774704473,0.9271083,103540.0,103530.0,0.83576361]
[1746774704973,0.9271083,103540.0,103530.0,0.9063283]
[1746774705174,0.9271083,103540.0,103530.0,0.83576361]
[1746774705473,0.9271083,103540.0,103530.0,0.9063283]
[1746774706974,0.9271083,103540.0,103530.0,0.83576361]
[1746774707368,0.92227613,103540.0,103530.0,0.9063283]
[1746774707571,0.92227613,103540.0,103530.0,0.83576361]
[1746774708074,0.92227613,103540.0,103530.0,0.9063283]
[1746774708282,0.92227613,103540.0,103530.0,0.83576361]
[1746774708667,0.92227613,103540.0,103530.0,0.9063283]
[1746774708866,0.92227613,103540.0,103530.0,0.89500339]
[1746774709877,0.92227613,103540.0,103530.0,0.83516616]
[1746774710068,0.92227613,103540.0,103530.0,0.90573085]
[1746774710971,0.92227613,103540.0,103530.0,0.75818315]
[1746774711371,0.72910443,103540.0,103530.0,0.75818315]
[1746774711672,0.92227613,103540.0,103530.0,0.75818315]
[1746774711981,0.91502812,103540.0,103530.0,0.77266315]
[1746774713877,0.68865642,103540.0,103530.0,0.77266315]
[1746774714084,0.52865642,103540.0,103530.0,0.77266315]
[1746774714379,0.52865642,103540.0,103530.0,0.92021085]
[1746774714380,0.55875642,103540.0,103530.0,0.92021085]
[1746774714677,0.75192812,103540.0,103530.0,0.84964616]
[1746774714877,0.75192812,103540.0,103530.0,0.92021085]
[1746774715074,0.91192812,103540.0,103530.0,0.92021085]
[1746774715782,0.91192812,103540.0,103530.0,0.84964616]
[1746774715980,0.91192812,103540.0,103530.0,0.92021085]
[1746774716279,0.91192812,103540.0,103530.0,0.85008832]
[1746774716477,0.91192812,103540.0,103530.0,0.92065301]
[1746774716779,0.65272642,103540.0,103530.0,0.92065301]
[1746774716971,0.65272642,103540.0,103530.0,0.85008832]
[1746774717173,0.52482642,103540.0,103530.0,0.92065301]
[1746774717477,0.52482642,103540.0,103530.0,0.55985301]
[1746774717777,0.52482642,103540.0,103530.0,1.28145301]
[1746774719178,0.52482642,103540.0,103530.0,1.47822916]
[1746774719379,0.52482642,103540.0,103530.0,1.40766447]
[1746774719570,0.55522642,103540.0,103530.0,1.47822916]
[1746774719976,0.55522642,103540.0,103530.0,1.46705954]
[1746774720177,0.71522642,103540.0,103530.0,1.46705954]
[1746774720866,0.71522642,103540.0,103530.0,1.40731852]
[1746774721065,0.55522642,103540.0,103530.0,1.46705954]
[1746774721271,0.55522642,103540.0,103530.0,1.47788322]
[1746774721582,0.55522642,103540.0,103530.0,1.40731853]
[1746774721882,0.55522642,103540.0,103530.0,1.47788322]
[1746774722179,0.52482642,103540.0,103530.0,1.47788322]
[1746774722773,0.52482642,103540.0,103530.0,1.40731853]
[1746774722974,0.52482642,103540.0,103530.0,1.47788322]
[1746774723169,0.52482642,103540.0,103530.0,1.28110707]
[1746774723481,0.48064734,103540.0,103530.0,1.37167176]
[1746774723671,0.48064734,103540.0,103530.0,1.23054238]
[1746774724067,0.64064734,103540.0,103530.0,1.30110707]
[1746774724468,0.64064734,103540.0,103530.0,1.30303887]
[1746774725181,0.48064734,103540.0,103530.0,1.30303887]
[1746774725376,0.48064734,103540.0,103530.0,1.23247418]
[1746774725575,0.48064734,103540.0,103530.0,1.30303887]
[1746774726273,0.51144734,103540.0,103530.0,1.30303887]
[1746774727182,0.50465284,103540.0,103530.0,1.30303887]
[1746774727882,0.49498955,103540.0,103530.0,1.3035393]
[1746774728082,0.43128955,103540.0,103530.0,1.2835393]
[1746774728283,0.003,103550.0,103540.0,0.1931717]
[1746774728582,0.003,103550.0,103540.0,0.91692637]
[1746774728878,0.0355,103550.0,103540.0,0.81692637]
[1746774729182,0.0355,103550.0,103540.0,0.67579699]
[1746774729379,0.194118,103570.0,103550.0,0.1]
[1746774729678,0.258618,103570.0,103560.0,0.9784344]
[1746774729879,0.258618,103570.0,103560.0,0.97347878]
[1746774730181,0.418618,103570.0,103560.0,0.78034434]
[1746774730383,0.418618,103570.0,103560.0,0.74794434]
[1746774730589,0.418618,103570.0,103560.0,0.94107874]
[1746774730786,0.48918269,103570.0,103560.0,0.94107438]
[1746774730984,0.418618,103570.0,103560.0,0.94107438]
[1746774731285,0.48918269,103570.0,103560.0,0.74788877]
[1746774731579,0.48918269,103570.0,103560.0,0.02628877]
[1746774732380,1.26710338,103570.0,103560.0,0.02628877]
[1746774732575,1.82861222,103570.0,103560.0,0.02628877]
[1746774732775,1.53837691,103570.0,103560.0,0.02628877]
[1746774732984,1.53837691,103570.0,103560.0,0.01510118]
[1746774733283,1.19182091,103570.0,103560.0,0.20823558]
[1746774733482,1.12125622,103570.0,103560.0,0.20823558]
[1746774733678,1.12125622,103570.0,103560.0,0.22271558]
[1746774734480,1.12125622,103570.0,103560.0,0.25541558]
[1746774734688,1.12125622,103570.0,103560.0,0.61621558]
[1746774735278,1.12125622,103570.0,103560.0,0.25541558]
[1746774735482,1.12125622,103570.0,103560.0,0.61621558]
[1746774736784,1.12125622,103570.0,103560.0,0.68678027]
[1746774736981,1.12125622,103570.0,103560.0,0.73019316]
[1746774737177,1.11400944,103570.0,103560.0,0.65962847]
[1746774737481,1.11400944,103570.0,103560.0,0.6596289]
[1746774738488,1.11400944,103570.0,103560.0,0.73019359]
[1746774738685,1.11400944,103570.0,103560.0,0.76199359]
[1746774739089,1.11400944,103570.0,103560.0,0.6914289]
[1746774739889,1.11400944,103570.0,103560.0,0.76200333]
[1746774740291,1.11400944,103570.0,103560.0,0.69143864]
[1746774741090,1.11400944,103570.0,103560.0,0.76200333]
[1746774741593,0.44397122,103570.0,103560.0,0.76164622]
[1746774741989,0.43914003,103570.0,103560.0,0.76164622]
[1746774742489,0.43914003,103570.0,103560.0,0.69108153]
[1746774742892,0.43914003,103570.0,103560.0,0.59448153]
[1746774743694,0.43914003,103570.0,103560.0,0.62518153]
[1746774744089,0.43914003,103570.0,103560.0,0.61421558]
[1746774744791,0.50970472,103570.0,103560.0,0.61421558]
[1746774744988,0.43914003,103570.0,103560.0,0.58351558]
[1746774745189,0.50970472,103570.0,103560.0,0.58351558]
[1746774745389,0.50970472,103570.0,103560.0,0.39038118]
[1746774745593,0.50970472,103570.0,103560.0,0.58351558]
[1746774745799,0.43914003,103570.0,103560.0,0.5684144]
[1746774746495,0.43914003,103570.0,103560.0,0.6004144]
[1746774746889,0.50970472,103570.0,103560.0,0.6004144]
[1746774747093,0.50970472,103570.0,103560.0,0.61551268]
[1746774747284,0.43914003,103570.0,103560.0,0.61551268]
[1746774747491,0.43914003,103570.0,103560.0,0.25471268]
[1746774747492,0.50970472,103570.0,103560.0,0.25471268]
[1746774747689,0.50970472,103570.0,103560.0,0.06157828]
[1746774747893,0.43914003,103570.0,103560.0,0.22271268]
[1746774748596,0.43914003,103570.0,103560.0,0.58351268]
[1746774748801,0.50970472,103570.0,103560.0,0.58351268]
[1746774749503,0.43914003,103570.0,103560.0,0.61621268]
[1746774749698,0.50970472,103570.0,103560.0,0.61621268]
[1746774749996,0.43914003,103570.0,103560.0,0.61621268]
[1746774751098,0.50970472,103570.0,103560.0,0.61621268]
[1746774751299,0.43914003,103570.0,103560.0,0.64663268]
[1746774752088,0.43914003,103570.0,103560.0,0.65744969]
[1746774752292,0.43914003,103570.0,103560.0,0.72801438]
[1746774752592,0.43914003,103570.0,103560.0,0.68914969]
[1746774755103,0.34204003,103570.0,103560.0,0.72084969]
[1746774755593,0.37234003,103570.0,103560.0,0.72084969]
[1746774755793,0.37234003,103570.0,103560.0,0.79141438]
[1746774756000,0.3834157,103570.0,103560.0,0.79141438]
[1746774756201,0.3834157,103570.0,103560.0,0.72084969]
[1746774756500,0.3834157,103570.0,103560.0,0.79141438]
[1746774756699,0.3834157,103570.0,103560.0,0.72084969]
[1746774756894,0.4148157,103570.0,103560.0,0.79141438]
[1746774757604,0.40998449,103570.0,103560.0,0.79141438]
[1746774758699,0.40998449,103570.0,103560.0,0.72084969]
[1746774759101,0.40998449,103570.0,103560.0,0.79141438]
[1746774759699,0.40273777,103570.0,103560.0,0.72084969]
[1746774760406,0.40273777,103570.0,103560.0,0.79141438]
[1746774760604,0.34103777,103570.0,103560.0,0.78059737]
[1746774760814,0.34103777,103570.0,103560.0,0.79160101]
[1746774761203,0.1955257,103570.0,103560.0,0.79160101]
[1746774761504,0.1955257,103570.0,103560.0,0.72103632]
[1746774761705,0.1955257,103570.0,103560.0,0.79160101]
[1746774761901,0.1955257,103570.0,103560.0,0.72103632]
[1746774762096,0.1955257,103570.0,103560.0,0.79160101]
[1746774762501,0.1955257,103570.0,103560.0,0.79173191]
[1746774762704,0.1955257,103570.0,103560.0,0.72116722]
[1746774763308,0.3555257,103570.0,103560.0,0.79173191]
[1746774764101,0.3555257,103570.0,103560.0,0.78059737]
[1746774764298,0.3555257,103570.0,103560.0,0.72132371]
[1746774764703,0.3555257,103570.0,103560.0,0.7918884]
[1746774764903,0.3555257,103570.0,103560.0,0.72132371]
[1746774765101,0.16241,103570.0,103560.0,0.72132371]
[1746774765410,0.3555257,103570.0,103560.0,0.7918884]
[1746774766704,0.16241,103570.0,103560.0,0.7918884]
[1746774766902,0.3555257,103570.0,103560.0,0.7918884]
[1746774767109,0.3555257,103570.0,103560.0,0.72132371]
[1746774767299,0.16241,103570.0,103560.0,0.86245309]
[1746774768011,0.16241,103570.0,103560.0,0.72132371]
[1746774768211,0.3507678,103580.0,103570.0,0.1931157]
[1746774768514,0.3507678,103580.0,103570.0,0.66140673]
[1746774768703,0.3825678,103580.0,103570.0,0.66140673]
[1746774768905,0.3825678,103580.0,103570.0,0.67650501]
[1746774769108,0.61313249,103580.0,103570.0,0.67650501]
[1746774769310,0.61313249,103580.0,103570.0,0.62808501]
[1746774769612,0.68369718,103580.0,103570.0,0.62808501]
[1746774769910,0.61313249,103580.0,103570.0,0.62808501]
[1746774770405,0.5425678,103580.0,103570.0,0.26728501]
[1746774770601,0.61313249,103580.0,103570.0,0.62808501]
[1746774771113,0.61313249,103580.0,103570.0,0.61679398]
[1746774771311,0.5425678,103580.0,103570.0,0.61679398]
[1746774771511,0.5425678,103580.0,103570.0,0.64879398]
[1746774771713,0.61313249,103580.0,103570.0,0.64879398]
[1746774772213,0.5425678,103580.0,103570.0,0.64879398]
[1746774772609,0.61313249,103580.0,103570.0,0.68089398]
[1746774772804,0.61313249,103580.0,103570.0,0.64879398]
[1746774774216,0.5425678,103580.0,103570.0,0.64879398]
[1746774774416,0.61313249,103580.0,103570.0,0.67979398]
[1746774774809,1.04449718,103580.0,103570.0,0.06287828]
[1746774775009,1.21160987,103580.0,103570.0,8e-08]
[1746774775207,0.1931157,103570.0,103560.0,0.03042]
[1746774775411,0.35978039,103570.0,103560.0,0.03042]
[1746774775611,0.45633639,103570.0,103560.0,0.2235544]
[1746774775919,0.45633639,103570.0,103560.0,0.05417]
[1746774776113,0.5457717,103570.0,103560.0,0.06494689]
[1746774776310,0.61633639,103570.0,103560.0,0.4257603]
[1746774777810,0.65327946,103570.0,103560.0,0.4257603]
[1746774779216,0.65327946,103570.0,103560.0,0.41497]
[1746774779517,0.5457717,103570.0,103560.0,0.41497]
[1746774779704,0.65327946,103570.0,103560.0,0.41497]
[1746774780319,0.65327946,103570.0,103560.0,0.38455]
[1746774780509,1.23582346,103570.0,103560.0,0.38455]
[1746774780709,1.23582346,103570.0,103560.0,0.02375]
[1746774780917,1.23582346,103570.0,103560.0,0.38455]
[1746774781118,1.23582346,103570.0,103560.0,0.415]
[1746774781908,1.23582346,103570.0,103560.0,0.0542]
[1746774782119,1.4891157,103570.0,103560.0,0.0542]
[1746774782420,1.23582346,103570.0,103560.0,0.0542]
[1746774782821,1.23582346,103570.0,103560.0,0.0846]
[1746774783221,1.23582346,103570.0,103560.0,0.0542]
[1746774783621,1.1283157,103570.0,103560.0,0.0849]
[1746774783816,1.23582346,103570.0,103560.0,0.0849]
[1746774784217,1.1283157,103570.0,103560.0,0.0849]
[1746774784414,1.23582346,103570.0,103560.0,0.0849]
[1746774785121,1.23582346,103570.0,103560.0,0.44553015]
[1746774785326,1.23582346,103570.0,103560.0,0.43281745]
[1746774785821,1.23582346,103570.0,103560.0,0.07201745]
[1746774786116,1.23582346,103570.0,103560.0,0.43281745]
[1746774786321,1.23582346,103570.0,103560.0,0.43282279]
[1746774786621,1.23582346,103570.0,103560.0,0.62595719]
[1746774786821,1.20462346,103570.0,103560.0,0.49452279]
[1746774787122,1.23762346,103570.0,103560.0,0.49452279]
[1746774787315,1.23762346,103570.0,103560.0,0.45245]
[1746774787514,1.1301157,103570.0,103560.0,0.66068339]
[1746774787717,1.23762346,103570.0,103560.0,0.46754899]
[1746774788321,1.23762346,103570.0,103560.0,0.47840923]
[1746774788724,1.1301157,103570.0,103560.0,0.47840923]
[1746774789225,1.23762346,103570.0,103560.0,0.47840923]
[1746774789523,1.23762346,103570.0,103560.0,0.50930923]
[1746774789825,1.23762346,103570.0,103560.0,0.70244363]
[1746774790925,1.1301157,103570.0,103560.0,0.70244363]
[1746774792520,1.23762346,103570.0,103560.0,0.70244363]
[1746774792827,1.23762346,103570.0,103560.0,0.69158339]
[1746774793227,1.1301157,103570.0,103560.0,0.70236273]
[1746774793418,1.1301157,103570.0,103560.0,0.70236272]
[1746774795223,1.1301157,103570.0,103560.0,0.50922832]
[1746774795418,1.23762346,103570.0,103560.0,0.44782832]
[1746774795619,1.23762346,103570.0,103560.0,0.64096272]
[1746774795929,1.1301157,103570.0,103560.0,0.67306272]
[1746774796129,1.1301157,103570.0,103560.0,0.64096272]
[1746774796627,1.23762346,103570.0,103560.0,0.67306272]
[1746774797221,1.23762346,103570.0,103560.0,0.70546272]
[1746774797422,1.23762346,103570.0,103560.0,0.70556896]
[1746774797723,1.20065906,103570.0,103560.0,0.70556896]
[1746774798534,1.20065906,103570.0,103560.0,0.51243456]
[1746774799022,1.20065906,103570.0,103560.0,0.70556896]
[1746774799328,1.20065906,103570.0,103560.0,0.69468339]
[1746774800028,1.20065906,103570.0,103560.0,0.50154899]
[1746774800230,1.1301157,103570.0,103560.0,0.6795844]
[1746774800430,1.20065906,103570.0,103560.0,0.6795844]
[1746774801819,1.1301157,103570.0,103560.0,0.6795844]
[1746774802425,1.20065906,103570.0,103560.0,0.69417729]
[1746774802724,1.1301157,103570.0,103560.0,0.69417729]
[1746774802925,1.20065906,103570.0,103560.0,0.50104289]
[1746774803632,1.1301157,103570.0,103560.0,0.50104289]
[1746774803828,1.20065906,103570.0,103560.0,0.50104289]
[1746774804632,1.20065906,103570.0,103560.0,0.69417729]
[1746774804633,1.1301157,103570.0,103560.0,0.69417729]
[1746774805433,1.20065906,103570.0,103560.0,0.69417729]
[1746774805925,1.20065906,103570.0,103560.0,0.50104289]
[1746774806537,1.20065906,103570.0,103560.0,0.69417729]
[1746774806735,1.20065906,103570.0,103560.0,0.50104289]
[1746774807035,1.20065906,103570.0,103560.0,0.48645]
[1746774807335,1.1301157,103570.0,103560.0,0.6795844]
[1746774807539,1.20065906,103570.0,103560.0,0.48645]
[1746774808132,1.04065906,103570.0,103560.0,0.48645]
[1746774808434,0.9701157,103570.0,103560.0,0.48645]
[1746774808635,1.04065906,103570.0,103560.0,0.48645]
[1746774809237,1.20065906,103570.0,103560.0,0.48645]
[1746774809432,1.20065906,103570.0,103560.0,0.45405]
[1746774809633,1.20065906,103570.0,103560.0,0.42195]
[1746774810233,1.1301157,103570.0,103560.0,0.42195]
[1746774810627,1.20065906,103570.0,103560.0,0.42195]
[1746774811027,1.1301157,103570.0,103560.0,0.42195]
[1746774811330,1.20065906,103570.0,103560.0,0.42195]
[1746774811534,1.20065906,103570.0,103560.0,0.45465]
[1746774812038,1.20065906,103570.0,103560.0,0.06115]
[1746774813542,1.1301157,103570.0,103560.0,0.42195]
[1746774813739,1.1301157,103570.0,103560.0,0.45275]
[1746774814035,1.20065906,103570.0,103560.0,0.45275]
[1746774814229,1.1301157,103570.0,103560.0,0.45275]
[1746774814431,1.20065906,103570.0,103560.0,0.45275]
[1746774814936,1.20065906,103570.0,103560.0,0.42195]
[1746774815139,1.20065906,103570.0,103560.0,0.06115]
[1746774815638,1.20065906,103570.0,103560.0,0.42195]
[1746774815837,1.20065906,103570.0,103560.0,0.06115]
[1746774816039,1.20065906,103570.0,103560.0,0.42195]
[1746774816641,1.20065906,103570.0,103560.0,0.06115]
[1746774817628,1.56145906,103570.0,103560.0,0.03045]
[1746774817833,1.63200242,103570.0,103560.0,0.03045]
[1746774818137,1.56145906,103570.0,103560.0,0.03045]
[1746774818530,1.20065906,103570.0,103560.0,0.06295]
[1746774820138,1.04065906,103570.0,103560.0,0.12435]
[1746774820338,1.04065906,103570.0,103560.0,0.48515]
[1746774820740,0.9701157,103570.0,103560.0,0.48515]
[1746774820940,1.04065906,103570.0,103560.0,0.48515]
[1746774821141,1.20065906,103570.0,103560.0,0.48515]
[1746774821639,1.1301157,103570.0,103560.0,0.48515]
[1746774821941,1.1301157,103570.0,103560.0,0.6782844]
[1746774822242,0.9701157,103570.0,103560.0,0.6782844]
[1746774822432,1.04065906,103570.0,103560.0,0.6782844]
[1746774823030,1.00765906,103570.0,103560.0,0.6782844]
[1746774823240,0.8722157,103570.0,103560.0,0.74882776]
[1746774823536,0.0328,103580.0,103570.0,0.1931157]
[1746774823743,1.02530486,103590.0,103580.0,0.1930971]
[1746774823944,1.15464136,103590.0,103580.0,0.0978]
[1746774824134,1.116798,103590.0,103580.0,0.0648]
[1746774824337,1.18734136,103590.0,103580.0,0.0953]
[1746774824945,1.54814136,103590.0,103580.0,0.0953]
[1746774825144,1.70814136,103590.0,103580.0,0.1279]
[1746774825536,1.276798,103590.0,103580.0,0.1279]
[1746774825738,1.34734136,103590.0,103580.0,0.1279]
[1746774826446,1.276798,103590.0,103580.0,0.1279]
[1746774826646,1.34934136,103590.0,103580.0,0.1279]
[1746774826843,1.35175136,103590.0,103580.0,0.1279]
[1746774827047,1.281208,103590.0,103580.0,0.1422655]
[1746774827247,1.35175136,103590.0,103580.0,0.1422655]
[1746774827439,1.35175136,103590.0,103580.0,0.15710866]
[1746774828746,1.281208,103590.0,103580.0,0.15710866]
[1746774828947,1.35175136,103590.0,103580.0,0.15710866]
[1746774829342,1.31905136,103590.0,103580.0,0.15710866]
[1746774832350,1.35205136,103590.0,103580.0,0.15710866]
[1746774832548,1.42259472,103590.0,103580.0,0.09220866]
[1746774833248,1.35205136,103590.0,103580.0,0.0773655]
[1746774833448,1.281508,103590.0,103580.0,0.1083655]
[1746774833651,1.35205136,103590.0,103580.0,0.1083655]
[1746774833851,1.35205136,103590.0,103580.0,0.1414655]
[1746774835348,1.35205136,103590.0,103580.0,0.15605092]
[1746774837258,1.281508,103590.0,103580.0,0.15605092]
[1746774837452,1.35205136,103590.0,103580.0,0.15605092]
[1746774837961,1.281508,103590.0,103580.0,0.15605092]
[1746774838159,1.35205136,103590.0,103580.0,0.15605092]
[1746774838657,1.42259472,103590.0,103580.0,0.15605092]
[1746774839047,1.281508,103590.0,103580.0,0.15605092]
[1746774839248,1.35205136,103590.0,103580.0,0.15605092]
[1746774840858,1.35205136,103590.0,103580.0,0.12295092]
[1746774841063,1.281508,103590.0,103580.0,0.12295092]
[1746774841258,1.35205136,103590.0,103580.0,0.1383655]
[1746774842063,1.35205136,103590.0,103580.0,0.1083655]
[1746774842562,1.35205136,103590.0,103580.0,0.0773655]
[1746774842749,1.42259472,103590.0,103580.0,0.0773655]
[1746774843352,1.35205136,103590.0,103580.0,0.0773655]
[1746774843765,1.281508,103590.0,103580.0,0.0773655]
[1746774844062,1.35205136,103590.0,103580.0,0.0773655]
[1746774844563,1.35205136,103590.0,103580.0,0.1077655]
[1746774844764,1.42259472,103590.0,103580.0,0.1077655]
[1746774845560,1.42259472,103590.0,103580.0,0.0773655]
[1746774846362,1.35205136,103590.0,103580.0,0.0773655]
[1746774846663,1.281508,103590.0,103580.0,0.0773655]
[1746774847063,1.42259472,103590.0,103580.0,0.0773655]
[1746774848163,1.35205136,103590.0,103580.0,0.0773655]
[1746774849164,1.42259472,103590.0,103580.0,0.0773655]
[1746774849554,0.1930971,103580.0,103570.0,0.02357]
[1746774849759,0.78978382,103580.0,103570.0,0.02357]
[1746774850062,0.1931157,103570.0,103560.0,0.42896]
[1746774850261,0.35845906,103570.0,103560.0,0.42896]
[1746774851457,0.2889157,103570.0,103560.0,0.42896]
[1746774851658,0.35945906,103570.0,103560.0,0.46216]
[1746774853167,0.36186906,103570.0,103560.0,0.06816]
[1746774853355,0.2913257,103570.0,103560.0,0.03576]
[1746774853560,0.36186906,103570.0,103560.0,0.03576]
[1746774853763,0.36186906,103570.0,103560.0,0.0308]
[1746774854661,0.52186906,103570.0,103560.0,0.0308]
[1746774858174,0.4513257,103570.0,103560.0,0.0308]
[1746774858475,0.52186906,103570.0,103560.0,0.0308]
[1746774858677,0.4513257,103570.0,103560.0,0.0308]
[1746774858974,0.52186906,103570.0,103560.0,0.0308]
[1746774859180,0.4513257,103570.0,103560.0,0.0308]
[1746774859363,0.52186906,103570.0,103560.0,0.0308]
[1746774859768,0.4513257,103570.0,103560.0,0.0308]
[1746774860166,0.52186906,103570.0,103560.0,0.0308]
[1746774860365,0.52286906,103570.0,103560.0,0.0308]
[1746774861273,0.52286906,103570.0,103560.0,0.0942]
[1746774862175,0.36286906,103570.0,103560.0,0.0942]
[1746774863277,0.3907257,103570.0,103560.0,0.455]
[1746774863879,0.46126906,103570.0,103560.0,0.455]
[1746774864270,0.3907257,103570.0,103560.0,0.6481344]
[1746774864471,0.3575257,103570.0,103560.0,0.455]
[1746774865074,0.3575257,103570.0,103560.0,0.615]
[1746774865075,0.1975257,103570.0,103560.0,0.615]
[1746774865476,0.26806906,103570.0,103560.0,0.615]
[1746774865776,0.29936906,103570.0,103560.0,0.615]
[1746774866074,0.36206906,103570.0,103560.0,0.615]
[1746774866376,0.36206906,103570.0,103560.0,0.455]